[Event "Biel Challengers Blitz 2024"]
[White "Donchenko,Alexander"]
[Black "Samunenkov,Ihor"]
[Site "Biel"]
[Round "3.1"]
[Annotator "TA"]
[Result "1-0"]
[Date "2024.07.21"]
[WhiteElo "2639"]
[BlackElo "2532"]
[PlyCount "133"]
[TimeControl "180+2"]

{[%evp 45,133,0,0,0,0,0,0,0,0,0,0,0,0,0,0,0,0,0,0,0,0,0,0,0,0,0,0,0,0,0,0,0,0,0,0,0,7,0,0,0,0,0,8,8,8,0,8,8,8,8,8,0,198,177,177,176,175,0,175,175,175,175,170,0,168,168,140,134,157,164,220,175,156,128,505,0,505,505,505,505,505,477,465,455,475,437,515,478,29976,29979]} 1. Nf3 {[%emt 0:0:1]} d5 {[%emt 0:0:2]} 2. e3 {[%emt 0:0:1]} c5 {[%emt 0:0:2]} 3. b3 {[%emt 0:0:1]} Nf6 {[%emt 0:0:1]} 4. Bb2 {[%emt 0:0:1]} g6 {[%emt 0:0:2]} 5. c4 {[%emt 0:0:2]} dxc4 {[%emt 0:0:2]} 6. Bxc4 {[%emt 0:0:2] A06: Réti Opening: 1 Nf3 d5.} Bg7 {[%emt 0:0:1]} 7. O-O {[%emt 0:0:2]} O-O {[%emt 0:0:2]} 8. Nc3 {[%emt 0:0:6]} Nc6 {[%emt 0:0:2]} 9. h3 {[%emt 0:0:6]} b6 {[%emt 0:0:3]} 10. Qe2 $146 {[%emt 0:0:3]} ({Predecessor:} 10. a3 Bb7 11. Qc2 Rc8 12. Be2 Nd4 13. exd4 cxd4 14. Qb1 dxc3 15. dxc3 Nd5 16. c4 {0-1 Oragwu,C (2195)-Gourlay,I (2295) London Mindsports IM-B 2023 (7)} )Bb7 {[%emt 0:0:4]} 11. Rfd1 {[%emt 0:0:3]} e5 {[%emt 0:0:7]} 12. d3 {[%emt 0:0:23]} Qe7 {[%emt 0:0:12]} 13. Ng5 {[%emt 0:0:28]} Na5 {[%emt 0:0:23]} 14. Nge4 {[%emt 0:0:8]} Nxc4 {[%emt 0:0:22]} 15. Nxf6+ {[%emt 0:0:2]} Bxf6 {[%emt 0:0:3]} 16. dxc4 {[%emt 0:0:2]} e4 {[%emt 0:0:2]} 17. Nd5 {[%emt 0:0:7]} Bxd5 {[%emt 0:0:2]} 18. Rxd5 {[%emt 0:0:4]} Bxb2 {[%emt 0:0:25]} 19. Qxb2 {[%emt 0:0:1]} Rad8 {[%emt 0:0:1]} 20. Rad1 {[%emt 0:0:3]} Rxd5 {[%emt 0:0:3]} 21. Rxd5 {[%emt 0:0:16]} Rd8 {[%emt 0:0:12]} 22. Qd2 {[%emt 0:0:4]} Rxd5 {[%emt 0:0:6]} 23. Qxd5 {[%emt 0:0:2]} h5 {[%emt 0:0:14]} 24. h4 {[%emt 0:0:17]} Qxh4 {[%emt 0:0:12]} 25. Qa8+ {[%emt 0:0:1]} Kg7 {[%emt 0:0:2]} 26. Qxa7 {[%emt 0:0:2]} Qf6 {[%emt 0:0:7]} 27. Qc7 {[%emt 0:0:9]} Qa1+ {[%emt 0:0:10]} 28. Kh2 {[%emt 0:0:0]} Qxa2 {[%emt 0:0:2]} 29. Qe5+ {[%emt 0:0:25]} Kg8 {[%emt 0:0:1]} 30. Qe8+ {[%emt 0:0:33]} Kg7 {[%emt 0:0:2]} 31. Qe5+ {[%emt 0:0:1]} Kh7 {[%emt 0:0:1]} 32. Qf6 {[%emt 0:0:17]} Qa7 {[%emt 0:0:3]} 33. Qc6 {[%emt 0:0:6]} f5 {[%emt 0:0:17]} 34. Qf6 {[%emt 0:0:1]} Qc7+ {[%emt 0:0:9]} 35. g3 {[%emt 0:0:1]} Qb7 {[%emt 0:0:8]} 36. Kh3 {[%emt 0:0:1]} Qc7 {[%emt 0:0:13]} 37. Kh4 {[%emt 0:0:1]} Qg7 {[%emt 0:0:1]} 38. Qxb6 {[%emt 0:0:4]} Qe7+ {[%emt 0:0:4]} 39. Kh3 {[%emt 0:0:1]} Kh6 {[%emt 0:0:2]} 40. Qb8 {[%emt 0:0:2]} g5 {[%emt 0:0:4]} 41. Qh8+ {[%emt 0:0:9]} Kg6 {[%emt 0:0:1]} 42. Qg8+ {[%emt 0:0:1]} Kh6 {[%emt 0:0:2]} 43. Qd5 {[%emt 0:0:1]} Kg6 {[%emt 0:0:4]} 44. Qc6+ {[%emt 0:0:0]} Kg7 {[%emt 0:0:1]} 45. Qc8 {[%emt 0:0:3]} Kg6 {[%emt 0:0:3]} 46. Kg2 {[%emt 0:0:1]} Qe5 {[%emt 0:0:7]} 47. Qg8+ {[%emt 0:0:2]} Kh6 {[%emt 0:0:2]} 48. Qf7 {[%emt 0:0:2]} g4 $2 {[%emt 0:0:3]} (48... f4 $1 $11 )49. Qg8 {[%emt 0:0:4]} Qe7 {[%emt 0:0:3]} 50. Qh8+ {[%emt 0:0:3]} Kg6 {[%emt 0:0:0]} 51. Qg8+ $2 {[%emt 0:0:1]} (51. Kh2 $18 )Kf6 $2 {[%emt 0:0:4]} (51... Kh6 $1 $11 {and Black stays safe.} )52. Qb8 $18 {[%emt 0:0:1]} Kg6 {[%emt 0:0:1]} 53. Kg1 {[%emt 0:0:2]} Kg7 {[%emt 0:0:2]} 54. Qb6 $2 {[%emt 0:0:1]} (54. Qc8 $18 Qf8 55. Qb7+ Qf7 56. Qb6 (56. Qc8 Qf8 $16 ))Kh7 $2 {[%emt 0:0:3]} (54... h4 $1 $11 )55. Qc6 {[%emt 0:0:2]} Kg7 {[%emt 0:0:1]} 56. Qd5 {[%emt 0:0:1]} Kf6 {[%emt 0:0:1]} 57. Qg8 {[%emt 0:0:2]} Ke5 {[%emt 0:0:3]} (57... Qd6 $142 )58. Qg6 {[%emt 0:0:3]} h4 {[%emt 0:0:3]} 59. gxh4 {[%emt 0:0:2]} Qxh4 $2 {[%emt 0:0:1][%mdl 8192]} (59... Qd8 $16 {is a better chance.} 60. Qg7+ Ke6 )60. Qg7+ $2 {[%emt 0:0:4]} (60. Qe8+ $18 Kd6 61. Qb8+ Ke6 62. Qb6+ Kf7 63. Qxc5 )Kd6 $2 {[%emt 0:0:3][%mdl 8192]} (60... Qf6 $11 61. Qh7 Ke6 )61. Qf8+ $18 {[%emt 0:0:2]} Kc6 {[%emt 0:0:2]} 62. Qxf5 {[%emt 0:0:2]} g3 {[%emt 0:0:1]} 63. Qg6+ {[%emt 0:0:1]} Kb7 {[%emt 0:0:1]} 64. Qxg3 {[%emt 0:0:2]} Qe7 {[%emt 0:0:3]} 65. Qg6 {[%emt 0:0:2]} Qe5 {[%emt 0:0:1]} 66. Kg2 {[%emt 0:0:1]} Kc7 {[%emt 0:0:1]} (66... Ka7 $18 67. Kh3 Qh8+ 68. Kg4 Qb2 69. Qf7+ (69. Qxe4 Qxf2 70. Qe7+ Ka8 $18 )Kb6 )67. Qg3 {[%emt 0:0:2]} 1-0

[Event "Biel Challengers Blitz 2024"]
[White "Bjerre,Jonas Buhl"]
[Black "Salem,A.R. Saleh"]
[Site "Biel"]
[Round "3.2"]
[Annotator "TA"]
[Result "0-1"]
[Date "2024.07.21"]
[WhiteElo "2653"]
[BlackElo "2638"]
[PlyCount "92"]
[TimeControl "180+2"]

{[%evp 22,92,18,12,37,23,26,-19,-17,-34,-8,-20,-11,-18,-18,-25,-13,-33,-12,-19,-22,-22,-15,-16,-23,-29,33,18,17,0,0,0,0,0,0,-89,-71,-148,-83,-291,-323,-840,-536,-878,-461,-776,-770,-783,-825,-837,-842,-817,-553,-816,-534,-1622,-1468,-1589,-1585,-1279,-1181,-1388,-1425,-1304,-1041,-1259,-1121,-1278,-1251,-1172,-1163,-1133,-1052]} 1. e4 {[%emt 0:0:1]} e6 {[%emt 0:0:1]} 2. d4 {[%emt 0:0:1]} d5 {[%emt 0:0:0]} 3. Nc3 {[%emt 0:0:2]} Bb4 {[%emt 0:0:2]} 4. e5 {[%emt 0:0:1]} c5 {[%emt 0:0:1]} 5. Bd2 {[%emt 0:0:2]} Bxc3 {[%emt 0:0:3]} 6. Bxc3 {[%emt 0:0:2]} Ne7 {[%emt 0:0:3] C17: French: 3 Nc3 Bb4 4 e5 c5 sidelines.} 7. Nf3 {[%emt 0:0:6]} b6 {[%emt 0:0:2]} 8. h4 $146 {[%emt 0:0:4]} ({Predecessor:} 8. Bb5+ Bd7 9. Bd3 Nbc6 10. O-O Qc7 11. Re1 h6 12. a3 O-O 13. b4 cxd4 14. Nxd4 Na5 15. Re3 {1-0 Seitaj,I (2333)-Nikolovski,N (2443) Kosovo-chT Pristina 2021 (4.3)} )Ba6 {[%emt 0:0:2]} 9. Bxa6 {[%emt 0:0:3]} Nxa6 {[%emt 0:0:1]} 10. Qe2 {[%emt 0:0:2]} Nc7 {[%emt 0:0:2]} 11. h5 {[%emt 0:0:2]} h6 {[%emt 0:0:0]} 12. g4 {[%emt 0:0:18]} Qd7 {[%emt 0:0:3]} 13. a4 {[%emt 0:0:5]} Nc6 {[%emt 0:0:6]} 14. Qe3 {[%emt 0:0:10]} Na6 {[%emt 0:0:3]} 15. Kf1 {[%emt 0:0:21]} Nab4 {[%emt 0:0:4]} 16. Bxb4 {[%emt 0:0:17]} (16. dxc5 $2 {is the wrong capture.} Nxc2 17. Qf4 Nxa1 $19 )Nxb4 {[%emt 0:0:1]} 17. Qd2 {[%emt 0:0:1]} Nc6 {[%emt 0:0:3]} 18. c3 {[%emt 0:0:4]} Na5 {[%emt 0:0:1]} 19. Qc2 {[%emt 0:0:6]} Rc8 {[%emt 0:0:1]} 20. Kg2 {[%emt 0:0:3]} cxd4 {[%emt 0:0:13]} 21. Nxd4 {[%emt 0:0:2]} Nc6 {[%emt 0:0:1]} 22. Nf3 {[%emt 0:0:14]} d4 {[%emt 0:0:6]} 23. Rad1 {[%emt 0:0:9]} Qd5 {[%emt 0:0:2]} (23... Qb7 $1 $11 24. Rhe1 (24. cxd4 Nxe5 25. Qb3 Nxg4 $17 )dxc3 25. bxc3 O-O )24. Rhe1 $14 {[%emt 0:0:7]} O-O {[%emt 0:0:5]} 25. c4 {[%emt 0:0:8]} Qc5 {[%emt 0:0:10]} 26. b3 {[%emt 0:0:3]} f5 {[%emt 0:0:4]} 27. g5 {[%emt 0:0:8]} Rcd8 {[%emt 0:0:5]} 28. gxh6 {[%emt 0:0:14]} (28. Qe2 $11 {keeps the balance.} )gxh6 $17 {[%emt 0:0:13]} 29. Kh2 {[%emt 0:0:0] [#]} ({White should try} 29. Rg1 )Kh7 {[%emt 0:0:4]} (29... d3 $142 $1 {[%cal Rd3c2]} 30. Qd2 f4 )30. Qd2 $2 {[%emt 0:0:6]} (30. Qe2 $17 {was forced.} )Rg8 $19 {[%emt 0:0:2]} 31. Nh4 $2 {[%emt 0:0:26]} (31. Qe2 Rg4 32. a5 )Nxe5 {[%emt 0:0:15]} 32. f3 {[%emt 0:0:1]} Qe7 {[%emt 0:0:18]} 33. Qf2 {[%emt 0:0:9]} (33. Kh3 $142 Qxh4+ 34. Kxh4 Nxf3+ 35. Kh3 Nxd2 36. Rxd2 )Qxh4+ $19 {[%emt 0:0:6]} 34. Qxh4 {[%emt 0:0:2]} Nxf3+ {[%emt 0:0:0]} 35. Kh3 {[%emt 0:0:1]} Nxh4 {[%emt 0:0:1]} 36. Kxh4 {[%emt 0:0:6]} Rg4+ {[%emt 0:0:3]} 37. Kh3 {[%emt 0:0:1]} Re4 {[%emt 0:0:7]} 38. Rxe4 {[%emt 0:0:5]} fxe4 {[%emt 0:0:0]} 39. Kg4 {[%emt 0:0:1]} e3 {[%emt 0:0:6]} 40. Kf3 {[%emt 0:0:2]} Rf8+ {[%emt 0:0:7]} 41. Ke4 {[%emt 0:0:2]} a5 {[%emt 0:0:26]} 42. Rg1 {[%emt 0:0:5]} Rd8 {[%emt 0:0:10]} 43. Kd3 {[%emt 0:0:1]} e5 {[%emt 0:0:3]} 44. Ke4 {[%emt 0:0:4]} Rg8 {[%emt 0:0:10]} 45. Re1 {[%emt 0:0:1]} Rg5 {[%emt 0:0:6]} 46. Rc1 {[%emt 0:0:10]} Rxh5 {[%emt 0:0:3]} 0-1

[Event "Biel Challengers Blitz 2024"]
[White "Maurizzi,Marc`Andria"]
[Black "Vaishali,Rameshbabu"]
[Site "Biel"]
[Round "3.3"]
[Annotator "TA"]
[Result "1-0"]
[Date "2024.07.21"]
[WhiteElo "2610"]
[BlackElo "2489"]
[PlyCount "45"]
[TimeControl "180+2"]

{[%evp 15,45,-26,-23,-27,-10,0,-8,-20,19,26,21,7,138,141,178,190,172,174,243,255,652,659,1091,1082,1254,1260,866,674,29989,29990,29988,29989]} 1. Nf3 {[%emt 0:0:1]} Nf6 {[%emt 0:0:1]} 2. d4 {[%emt 0:0:1]} g6 {[%emt 0:0:2]} 3. g3 {[%emt 0:0:6]} Bg7 {[%emt 0:0:4]} 4. Bg2 {[%emt 0:0:0]} O-O {[%emt 0:0:2]} 5. O-O {[%emt 0:0:2]} d5 {[%emt 0:0:3]} 6. c4 {[%emt 0:0:1]} c6 {[%emt 0:0:2]} 7. Nc3 {[%emt 0:0:1]} dxc4 {[%emt 0:0:3]} 8. e4 {[%emt 0:0:1]} b5 {[%emt 0:0:4]} 9. Qe2 {[%emt 0:0:2]} a5 {[%emt 0:0:6]} 10. Rd1 {[%emt 0:0:2]} Ba6 {[%emt 0:0:28]} 11. d5 {[%emt 0:0:9] The position is equal.} cxd5 {[%emt 0:0:13]} 12. e5 {[%emt 0:0:1]} e6 $1 {[%emt 0:0:26]} 13. exf6 {[%emt 0:0:14]} Bxf6 {[%emt 0:0:2] [#]} (13... Qxf6 $11 14. Bg5 Qf5 )14. Ne4 $1 $16 {[%emt 0:0:7] White is much more active. The black rooks are passive.} Bg7 {[%emt 0:0:5]} 15. Bg5 {[%emt 0:0:7]} Qc7 {[%emt 0:0:46]} 16. Nf6+ {[%emt 0:0:42]} Kh8 {[%emt 0:0:1] [#]} (16... Bxf6 {might work better.} 17. Bxf6 Nd7 )17. Ne5 $1 $18 {[%emt 0:0:9] Excellent horsemanship.} Nc6 {[%emt 0:0:5] Inhibits Rd4.} (17... h6 )18. Nxc6 {[%emt 0:0:7][%cal Oe2g4] Strongly threatening Qg4!} Qxc6 {[%emt 0:0:1]} 19. Qg4 {[%emt 0:0:1] Threatens to win with Qh4.} c3 {[%emt 0:0:57]} 20. Qh4 {[%emt 0:0:11][%csl Gf6][%cal Rh4h7]} h5 {[%emt 0:0:1]} 21. g4 {[%emt 0:0:21][%cal Bg3g4,Bg4h5][%mdl 32]} cxb2 {[%emt 0:0:9]} 22. gxh5 {[%emt 0:0:5]} Qc4 {[%emt 0:0:1] [#]} 23. Be4 $1 {[%emt 0:0:22][%mdl 512] Black did not feel at home in the position after the opening.   Weighted Error Value: White=0.19 (very precise) /Black=0.99.  Mistake:       	---       	Black=3      Inaccurate:     	---       	Black=2      OK:         	White=3     	Black=3      Best:        	White=2     	---        Strong:       	White=2     	Black=1} 1-0

[Event "Biel Challengers Blitz 2024"]
[White "Samunenkov,Ihor"]
[Black "Vaishali,Rameshbabu"]
[Site "Biel"]
[Round "4.1"]
[Annotator "TA"]
[Result "1-0"]
[Date "2024.07.21"]
[WhiteElo "2532"]
[BlackElo "2489"]
[PlyCount "73"]
[TimeControl "180+2"]

{[%evp 18,73,14,5,8,20,13,4,4,10,12,0,14,15,58,77,58,62,69,67,62,66,84,97,86,63,62,69,93,88,124,88,71,83,130,119,126,107,179,167,174,171,186,176,187,170,131,125,199,243,252,227,411,406,879,879,863,861]} 1. d4 {[%emt 0:0:2]} Nf6 {[%emt 0:0:1]} 2. g3 {[%emt 0:0:2]} g6 {[%emt 0:0:3]} 3. Bg2 {[%emt 0:0:2]} d5 {[%emt 0:0:2]} 4. Nf3 {[%emt 0:0:2]} Bg7 {[%emt 0:0:1]} 5. c4 {[%emt 0:0:4]} c6 {[%emt 0:0:4]} 6. O-O {[%emt 0:0:8]} O-O {[%emt 0:0:2]} 7. cxd5 {[%emt 0:0:3]} cxd5 {[%emt 0:0:2]} 8. Ne5 {[%emt 0:0:1]} Bf5 {[%emt 0:0:19]} 9. Nc3 {[%emt 0:0:10]} Ne4 {[%emt 0:0:3]} 10. Bf4 {[%emt 0:0:20]} Nxc3 {[%emt 0:0:10]} 11. bxc3 {[%emt 0:0:2]} Nc6 {[%emt 0:0:1]} 12. Nxc6 {[%emt 0:0:4]} bxc6 {[%emt 0:0:1] The position is equal.} 13. Qa4 {[%emt 0:0:1]} e6 {[%emt 0:0:7]} 14. Rfc1 {[%emt 0:0:7]} Qb6 {[%emt 0:0:27] [#]} 15. e4 $1 {[%emt 0:0:5]} Bxe4 {[%emt 0:0:44]} (15... dxe4 16. Rab1 )16. Bxe4 {[%emt 0:0:4]} dxe4 {[%emt 0:0:2]} 17. Rab1 {[%emt 0:0:2] Inhibits Qb5.} Qd8 {[%emt 0:0:1]} 18. Qxc6 {[%emt 0:0:48] White is much more active.} Qa5 {[%emt 0:0:21]} 19. Rc2 {[%emt 0:0:34] Black is weak on the dark squares} Qd5 {[%emt 0:0:43]} 20. Qxd5 {[%emt 0:0:4]} exd5 {[%emt 0:0:0]} 21. Rb5 {[%emt 0:0:1]} Rfd8 {[%emt 0:0:2]} 22. Rcb2 {[%emt 0:0:26]} Rac8 {[%emt 0:0:5]} 23. R2b3 {[%emt 0:0:1]} Rd7 {[%emt 0:0:8]} 24. Rb7 {[%emt 0:0:6]} Rxb7 {[%emt 0:0:9]} 25. Rxb7 $16 {[%emt 0:0:2][%mdl 4096] Endgame. KRB-KRB} h6 {[%emt 0:0:3]} (25... a6 $142 )26. Bd2 {[%emt 0:0:5]} ({Of course not} 26. Rxa7 $6 Rxc3 27. Rd7 Bxd4 $14 )f5 {[%emt 0:0:8]} 27. Rxa7 {[%emt 0:0:6]} Rb8 {[%emt 0:0:1]} (27... Bf6 $16 {was called for.} )28. Ra5 $18 {[%emt 0:0:7][%cal Ba7a5,Ba5d5,Bd5b5,Bb5b7,Bb7b8,Bb8f8][%mdl 32]} Rb2 {[%emt 0:0:2]} 29. Be3 {[%emt 0:0:2]} Rc2 {[%emt 0:0:4]} 30. Rxd5 {[%emt 0:0:4] aiming for Rd8+.} Rxc3 {[%emt 0:0:1]} 31. a4 {[%emt 0:0:1][%cal Ba2a4,Ba4a5][%mdl 32]} Ra3 {[%emt 0:0:3]} 32. a5 {[%emt 0:0:1]} Bf8 {[%emt 0:0:1]} (32... Ra4 $16 {is a better defense.} 33. h4 Kf7 )33. Rb5 {[%emt 0:0:4]} Kf7 {[%emt 0:0:3]} 34. d5 {[%emt 0:0:2] [#] Strongly threatening Rb7+.} g5 $2 {[%emt 0:0:1]} (34... Ra1+ {keeps fighting.} 35. Kg2 g5 )35. Rb7+ {[%emt 0:0:5]} Ke8 {[%emt 0:0:4]} (35... Kg8 $142 36. Ra7 Ra1+ 37. Kg2 Ra2 )36. Rb8+ {[%emt 0:0:1]} Kd7 {[%emt 0:0:2]} 37. Rxf8 {[%emt 0:0:3] Weighted Error Value: White=0.05 (flawless) /Black=0.27 (precise) .  Mistake:       	---       	Black=5      Inaccurate:     	---       	Black=2      OK:         	White=10    	Black=7      Best:        	White=4     	Black=2} 1-0

[Event "Biel Challengers Blitz 2024"]
[White "Salem,A.R. Saleh"]
[Black "Maurizzi,Marc`Andria"]
[Site "Biel"]
[Round "4.2"]
[Annotator "TA"]
[Result "1-0"]
[Date "2024.07.21"]
[WhiteElo "2638"]
[BlackElo "2610"]
[PlyCount "67"]
[TimeControl "180+2"]

{[%evp 9,67,-9,-3,-8,-3,0,17,2,23,14,25,10,0,27,28,0,4,0,0,0,0,0,0,-45,-71,-61,-55,-18,0,0,335,261,447,456,460,456,459,287,549,233,418,221,227,221,227,231,304,45,233,0,927,984,835,754,742,0,0,0,765,0]} 1. d4 {[%emt 0:0:1]} e6 {[%emt 0:0:9]} 2. c4 {[%emt 0:0:2]} Nf6 {[%emt 0:0:3]} 3. Nc3 {[%emt 0:0:2]} Bb4 {[%emt 0:0:3]} 4. a3 {[%emt 0:0:1]} Bxc3+ {[%emt 0:0:2]} 5. bxc3 {[%emt 0:0:1]} Nc6 {[%emt 0:0:4]} 6. f3 {[%emt 0:0:1]} O-O {[%emt 0:0:5]} 7. e4 {[%emt 0:0:2]} d6 {[%emt 0:0:4]} 8. Bd3 {[%emt 0:0:2] Die Stellung ist ausgeglichen.} Ne8 {[%emt 0:0:5]} 9. Ne2 {[%emt 0:0:2]} Na5 {[%emt 0:0:1]} 10. O-O {[%emt 0:0:10]} c5 {[%emt 0:0:3]} 11. Ng3 {[%emt 0:0:8]} b6 {[%emt 0:0:3]} 12. Rb1 {[%emt 0:0:2]} Ba6 {[%emt 0:0:2]} 13. Qe2 {[%emt 0:0:3]} cxd4 {[%emt 0:0:2]} 14. cxd4 {[%emt 0:0:1]} Rc8 {[%emt 0:0:3]} 15. Rb4 {[%emt 0:0:2]} Qc7 {[%emt 0:0:23][%cal Ra6c4]} 16. f4 {[%emt 0:0:44][%cal Bf3f4,Bf4f5,Bf5f6][%mdl 32]} Bxc4 {[%emt 0:0:13]} 17. Bxc4 {[%emt 0:0:5]} Nxc4 {[%emt 0:0:1]} 18. f5 {[%emt 0:0:1][%cal Of5f6]} a5 {[%emt 0:0:19]} 19. Rb3 {[%emt 0:0:3][%cal Of5f6]} Nf6 $2 {[%emt 0:0:36][%mdl 8192]} (19... e5 $11 )20. Bg5 {[%emt 0:0:3]} Nd7 {[%emt 0:0:2]} (20... Ne8 21. fxe6 fxe6 )21. f6 $18 {[%emt 0:0:2] Und jetzt fxg7 wäre schön.} g6 {[%emt 0:0:2]} 22. Qg4 $1 {[%emt 0:0:7] Schwarz muss nun Qh4 beachten.} Kh8 {[%emt 0:0:2]} 23. Bh6 {[%emt 0:0:21]} a4 $2 {[%emt 0:0:23]} (23... Nd2 {ist eine bessere Verteidigung.} )24. Rbf3 {[%emt 0:0:4]} (24. Bg7+ $142 Kg8 25. Rc3 )Nde5 $2 {[%emt 0:0:3]} (24... Nce5 25. dxe5 Nxe5 )25. dxe5 {[%emt 0:0:3]} (25. Bg7+ $142 Kg8 26. Qh3 (26. dxe5 Nxe5 27. Qh4 Nxf3+ 28. Rxf3 Qc1+ 29. Nf1 Qc5+ 30. Re3 Rfd8 $14 )Nxf3+ 27. gxf3 )Nxe5 {[%emt 0:0:0]} 26. Qh4 {[%emt 0:0:17]} Nxf3+ {[%emt 0:0:2]} 27. Rxf3 {[%emt 0:0:2]} (27. gxf3 Rg8 $14 )Qc5+ {[%emt 0:0:19] [#]} 28. Kh1 $2 {[%emt 0:0:1]} (28. Be3 $1 $18 {[%cal Re3c5]} Qe5 29. Qh6 (29. Bxb6 Rc3 $15 ))Rfe8 $2 {[%emt 0:0:10]} ({Günstiger ist} 28... Rfd8 $14 )29. Bg5 $2 $40 {[%emt 0:0:45][%mdl 128] Weiss hat was vor.} (29. h3 $18 )Qe5 $2 {[%emt 0:0:12][%mdl 8192]} (29... d5 $11 )30. Qh6 {[%emt 0:0:1]} Rg8 {[%emt 0:0:0] Es drohte Qg7+} 31. Nf1 {[%emt 0:0:3][%cal Oh6h7] Weiss will mit Qxh7+! Matt setzen.} Rc3 {[%emt 0:0:6]} 32. Ne3 {[%emt 0:0:16][%cal Oh6h7] Beabsichtigt Qxh7+! und Matt.} Rc1+ $1 {[%emt 0:0:2]} ({Und nicht} 32... Rxa3 33. Qxh7+ Kxh7 34. Rh3# )33. Nf1 {[%emt 0:0:1][%cal Oh6h7] jetzt Qxh7+! und aus. Tanz auf der Rasierklinge.} Rc3 $1 {[%emt 0:0:2] [#] ...Rxf3 ist eine echte Drohung.} 34. Ne3 $2 {[%emt 0:0:22][%mdl 32768] Gewichteter Fehlerwert: Weiß=0.90/Schwarz=0.67.  Verlustzug:     	---       	Schwarz=3     Gewinn verpasst:   	Weiß=3     	---        Fehler:       	Weiß=2     	Schwarz=3     Ungenau:       	Weiß=2     	Schwarz=1     OK:         	Weiß=7     	Schwarz=9     Bester:       	Weiß=2     	Schwarz=1     Stark:        	Weiß=1     	Schwarz=1    . Zeitüberschreitung!?} ({Weiss kommt nicht vorbei an} 34. Rf4 $1 $18 Qxf4 35. Bxf4 )1-0

[Event "Biel Challengers Blitz 2024"]
[White "Donchenko,Alexander"]
[Black "Bjerre,Jonas Buhl"]
[Site "Biel"]
[Round "4.3"]
[Annotator "TA"]
[Result "0-1"]
[Date "2024.07.21"]
[WhiteElo "2639"]
[BlackElo "2653"]
[PlyCount "142"]
[TimeControl "180+2"]

{[%evp 80,142,1049,512,473,477,705,526,666,626,580,563,814,826,697,618,4132,251,308,364,327,298,369,348,314,312,233,77,314,373,325,308,1214,1144,1405,1565,2020,1010,3589,984,4411,666,694,659,635,624,572,0,-8,-29968,-29970,-29976,-29978,-29978,-29979,-29979,-29980,-29982,-29980,-29982,-29981,-29986,-29981,-29989,-29990]} 1. c4 {[%emt 0:0:1]} e5 {[%emt 0:0:6]} 2. Nc3 {[%emt 0:0:1]} Bb4 {[%emt 0:0:2]} 3. Nd5 {[%emt 0:0:1]} a5 {[%emt 0:0:1]} 4. Nf3 {[%emt 0:0:1]} d6 {[%emt 0:0:1]} 5. a3 {[%emt 0:0:1]} Bc5 {[%emt 0:0:1]} 6. e3 {[%emt 0:0:2]} c6 {[%emt 0:0:1]} 7. d4 {[%emt 0:0:1]} Ba7 {[%emt 0:0:1]} 8. Nc3 {[%emt 0:0:1]} Nd7 {[%emt 0:0:1]} 9. Qc2 {[%emt 0:0:3]} Ngf6 {[%emt 0:0:4]} 10. Bd2 {[%emt 0:0:1]} O-O {[%emt 0:0:2]} 11. O-O-O {[%emt 0:0:1]} Re8 {[%emt 0:0:3]} 12. h3 {[%emt 0:0:2]} e4 {[%emt 0:0:4]} 13. Nh2 {[%emt 0:0:1]} d5 {[%emt 0:0:3]} 14. cxd5 {[%emt 0:0:2]} cxd5 {[%emt 0:0:7]} 15. g4 {[%emt 0:0:1]} Nb6 {[%emt 0:0:49]} 16. g5 {[%emt 0:0:2]} Nfd7 {[%emt 0:0:1]} 17. Rg1 {[%emt 0:0:11]} Nf8 {[%emt 0:0:4]} 18. h4 {[%emt 0:0:27]} Bd7 {[%emt 0:0:1]} 19. Kb1 {[%emt 0:0:19]} Rc8 {[%emt 0:0:1]} 20. Qb3 {[%emt 0:0:1]} a4 {[%emt 0:0:14]} 21. Qb4 {[%emt 0:0:20]} Be6 {[%emt 0:0:28]} 22. Nxa4 {[%emt 0:0:8]} Qc7 {[%emt 0:0:6]} 23. Bb5 {[%emt 0:0:10]} Nxa4 {[%emt 0:0:18]} 24. Qxa4 {[%emt 0:0:22]} Nd7 {[%emt 0:0:30]} 25. Ng4 {[%emt 0:0:8]} Nb6 {[%emt 0:0:5]} 26. Qb3 {[%emt 0:0:4]} Red8 {[%emt 0:0:5]} 27. Rc1 {[%emt 0:0:4]} Nc4 {[%emt 0:0:2]} 28. Bb4 {[%emt 0:0:6]} Bxg4 {[%emt 0:0:2]} 29. Qa4 {[%emt 0:0:32]} Bb8 {[%emt 0:0:12]} 30. Bxc4 {[%emt 0:0:2]} dxc4 {[%emt 0:0:5]} 31. Rxg4 {[%emt 0:0:1]} Qh2 {[%emt 0:0:3]} 32. Qc2 {[%emt 0:0:5]} Re8 {[%emt 0:0:5]} 33. Rxe4 {[%emt 0:0:5]} Rxe4 {[%emt 0:0:2]} 34. Qxe4 {[%emt 0:0:1]} Qxf2 {[%emt 0:0:1]} 35. Qxb7 {[%emt 0:0:2]} Re8 {[%emt 0:0:0]} 36. Rc3 {[%emt 0:0:7]} Qxh4 {[%emt 0:0:4]} 37. Qd5 {[%emt 0:0:13]} g6 {[%emt 0:0:8]} 38. Rxc4 {[%emt 0:0:6]} Bg3 {[%emt 0:0:2]} 39. Rc3 {[%emt 0:0:4]} Be1 {[%emt 0:0:2]} 40. Rc7 {[%emt 0:0:1]} Qf2 {[%emt 0:0:9]} 41. Bxe1 {[%emt 0:0:2]} (41. Qc6 $142 Qf5+ 42. Ka2 )Qxe1+ $18 {[%emt 0:0:1]} 42. Ka2 {[%emt 0:0:0]} Rf8 {[%emt 0:0:1]} (42... Qf2 $142 43. a4 Rf8 )43. e4 {[%emt 0:0:5]} Qg3 {[%emt 0:0:2]} 44. e5 {[%emt 0:0:0]} Qxg5 {[%emt 0:0:1]} 45. a4 {[%emt 0:0:2]} h5 {[%emt 0:0:3]} 46. a5 {[%emt 0:0:0]} h4 {[%emt 0:0:1]} 47. a6 {[%emt 0:0:2]} h3 {[%emt 0:0:1]} 48. a7 $2 {[%emt 0:0:2]} (48. Rxf7 {White wants to mate with Rf5+.} Rxf7 49. a7 )Qg2 $18 {[%emt 0:0:1]} 49. Qxg2 {[%emt 0:0:17]} hxg2 {[%emt 0:0:0]} 50. Rc1 {[%emt 0:0:1]} Ra8 {[%emt 0:0:4]} 51. Rg1 {[%emt 0:0:1]} Rxa7+ {[%emt 0:0:2] [#]} 52. Kb3 $1 {[%emt 0:0:0]} f6 {[%emt 0:0:6]} 53. Rxg2 $2 {[%emt 0:0:5]} (53. exf6 $18 {is the precise move to win.} Kf7 54. Rxg2 )Kf7 $2 {[%emt 0:0:0]} (53... fxe5 $16 54. dxe5 Kf7 )54. Rf2 $18 {[%emt 0:0:5]} f5 {[%emt 0:0:3]} 55. d5 {[%emt 0:0:1]} Rc7 $2 {[%emt 0:0:2]} (55... Re7 56. e6+ Kf6 )56. Kb4 $18 {[%emt 0:0:1]} Rc1 {[%emt 0:0:3]} 57. Rh2 {[%emt 0:0:4]} (57. Kb5 Rc8 58. Kb6 Re8 59. e6+ (59. Re2 Ra8 $18 )Ke7 )g5 {[%emt 0:0:4]} 58. Rh6 {[%emt 0:0:3]} f4 {[%emt 0:0:1]} 59. Rf6+ {[%emt 0:0:1]} (59. d6 $142 Re1 60. Rf6+ Ke8 61. e6 )Ke7 {[%emt 0:0:1]} 60. Rf5 {[%emt 0:0:3]} (60. d6+ $142 Kd7 61. Rf7+ Ke6 62. Re7+ Kf5 63. d7 )Rg1 {[%emt 0:0:1]} 61. Kc5 {[%emt 0:0:2]} Rc1+ {[%emt 0:0:2]} 62. Kb5 {[%emt 0:0:3]} Rd1 {[%emt 0:0:1]} 63. d6+ $2 {[%emt 0:0:3]} (63. Rxg5 Rxd5+ 64. Kc4 Rd2 $11 )(63. e6 $18 Kd6 64. Re5 (64. Rxg5 f3 $11 )Kxe5 65. e7 )Ke6 $11 {[%emt 0:0:1]} 64. Rxg5 $2 {[%emt 0:0:1][%mdl 8192]} (64. Rf8 $11 Kxe5 65. Re8+ Kf5 (65... Kxd6 66. Rd8+ Ke6 67. Rxd1 $18 )66. Kc6 )f3 {[%emt 0:0:1]} 65. Rg3 {[%emt 0:0:4]} f2 {[%emt 0:0:1]} (65... Kxe5 66. Rxf3 Kxd6 67. Rc3 Rd5+ 68. Ka4 $18 )66. Rf3 {[%emt 0:0:1]} f1=Q+ {[%emt 0:0:2]} 67. Rxf1 {[%emt 0:0:1]} Rxf1 {[%emt 0:0:0]} 68. Kc6 {[%emt 0:0:1]} Rc1+ {[%emt 0:0:1]} ({Worse is} 68... Kxe5 69. d7 Rf8 70. Kc7 $11 )69. Kb7 {[%emt 0:0:1]} Kd7 {[%emt 0:0:3]} ({Stronger than} 69... Kxe5 70. d7 Rd1 71. Kc8 $11 )70. b4 {[%emt 0:0:1]} Rb1 {[%emt 0:0:1]} 71. e6+ {[%emt 0:0:2]} Kxd6 {[%emt 0:0:2]} 0-1